Cogmind - Beta 11.1 @@@ ROGUE MODE // 2022.07.24 @ 15:40:05 Player: gorb Result: Destroyed by L-31 Rogue with Katana Performance ------------- Evolutions (1) 500 Regions Visited (3) 600 Robots Destroyed (11) 55 Value Destroyed (276) 276 Prototype IDs (0) 0 Alien Tech Used (0) 0 Bonus (0) 0 TOTAL SCORE: 1431 Bonus ------- None Cogmind --------- Core Integrity 0/400 Matter 19/300 Energy 75/100 System Corruption 10% Temperature Cool (9) Movement Core (150) Ox2 Location -9/Materials Parts ------- > --- POWER (2) -------- (None) > --- PROPULSION (2) --- (None) > --- UTILITY (3) ------ Small Storage Unit > --- WEAPON (2) ------- Medium Laser > --- INVENTORY (8) ---- Heat Sink Targeting Computer Tractor Beam Peak State ------------ > --- POWER ------------ Light Ion Engine Light Nuclear Core > --- PROPULSION ------- Carbon-fiber Leg Carbon-fiber Leg > --- UTILITY ---------- Improved Heat Sink Small Storage Unit Recoil Stabilizer > --- WEAPON ----------- Assault Rifle Datajack > --- INVENTORY -------- Heat Sink Tractor Beam Medium Laser [Rating: 19] Favorites ----------- Power Ion Engine Engine Ion Engine Power Core Light Nuclear Core Propulsion Aluminum Leg Leg Aluminum Leg Utility Heat Sink Device Heat Sink Storage Small Storage Unit Weapon Assault Rifle Energy Gun Medium Laser Ballistic Gun Assault Rifle Launcher Grenade Launcher Special Melee Weapon Datajack Build | -11 -10 -10 -9 ------- Run | Scr Mat Min Mat Slots Evolved 2 | . . . 2 Power 1 | . . . 1 Propulsion . | . . . . Utility 1 | . . . 1 Weapon . | . . . . Parts Attached 24 | 7 7 . 10 Power 5 | 2 1 . 2 Engine 4 | 2 . . 2 Core 1 | . 1 . . Reactor . | . . . . Propulsion 4 | 2 . . 2 Treads . | . . . . Leg 4 | 2 . . 2 Wheel . | . . . . Hover . | . . . . Flight . | . . . . Utility 8 | 1 4 . 3 Device 6 | 1 2 . 3 Storage 2 | . 2 . . Processor . | . . . . Hackware . | . . . . Protection . | . . . . Artifact . | . . . . Weapon 7 | 2 2 . 3 Energy Gun 2 | 1 . . 1 Energy Cannon . | . . . . Ballistic Gun 2 | 1 . . 1 Ballistic Cannon . | . . . . Launcher 1 | . 1 . . Special Weapon . | . . . . Impact Weapon . | . . . . Slashing Weapon . | . . . . Piercing Weapon . | . . . . Special Melee Weapon 2 | . 1 . 1 Unidentified Prototypes . | . . . . Parts Lost 11 | . . . 11 Power 3 | . . . 3 Propulsion 2 | . . . 2 Utility 3 | . . . 3 Weapon 3 | . . . 3 Highest Loss Streak 7 | . . . 7 To Critical Strikes . | . . . . Average Slot Usage (%) 90 | . 95 100 81 Engine 3 | . 3 . 6 Core 10 | . 10 14 7 Leg 25 | . 28 28 20 Device 15 | . 14 14 16 Storage 11 | . 9 14 11 Energy Gun 2 | . 6 . . Ballistic Gun 3 | . 5 . 3 Launcher 7 | . 8 14 4 Special Melee Weapon 9 | . 7 14 9 Naked Turns . | . . . . Heaviest Build 22 | 10 16 16 22 Greatest Support 30 | 20 20 20 30 Greatest Overweight (x) 1 | . . . 1 Average Overweight (x) . | . . . . Largest Inventory Capacity 8 | 5 8 8 8 Average Capacity 5 | 5 7 8 8 Most Carried 8 | 3 8 7 8 Average Carried 2 | . 4 7 5 Final Capacity 8 | 5 8 8 8 Final Carried 7 | 1 7 7 3 Class Distribution -------------------- 100% | Mutant Dominant Class ---------------- Mutant | -10/Materials Mutant | -10/Mines Mutant | -9/Materials Resources | -11 -10 -10 -9 ----------- Run | Scr Mat Min Mat Matter Collected 379 | 276 73 . 30 Remotely . | . . . . Salvage Created 337 | 36 216 . 85 Parts 22 | 4 10 . 8 Haulers Intercepted . | . . . . Recyclers Shooed . | . . . . Parts Field Recycled . | . . . . Retrieved Matter . | . . . . Parts Self-Destructed . | . . . . Prevented . | . . . . Kills | -11 -10 -10 -9 ------- Run | Scr Mat Min Mat Combat Hostiles Destroyed 9 | 1 2 . 6 Guns 4 | 1 2 . 1 AOE 5 | . . . 5 Classes Destroyed 5 | 1 2 . 2 Worker 1 | . 1 . . Recycler 1 | . 1 . . Swarmer 3 | . . . 3 Grunt 4 | 1 2 . 1 Sentry 2 | . . . 2 Best Kill Streak 4 | 1 4 . 4 Combat Bots Only 4 | 1 2 . 4 Max Kills in Single Turn 2 | 1 1 . 2 Gunslinging . | . . . . Exploded 2 | . . . 2 Melee . | . . . . Uniques/NPCs Destroyed . | . . . . Combat | -11 -10 -10 -9 -------- Run | Scr Mat Min Mat Damage Taken 1421 | 23 176 44 1178 Core 437 | . 12 . 425 Absorbed by Shields . | . . . . Core Remaining (%) 97 | 100 . 95 . Volleys Fired 48 | 2 12 1 33 Largest 2 | 2 2 1 1 Hottest 70 | 70 70 30 50 Shots Fired 62 | 4 24 1 33 Gun 46 | 4 22 . 20 Cannon . | . . . . Launcher 16 | . 2 1 13 Special . | . . . . Kinetic 31 | 2 11 . 18 Thermal 15 | 2 11 . 2 Explosive 16 | . 2 1 13 Electromagnetic . | . . . . Robot Hit Streak 12 | 3 6 . 12 Robot Miss Streak 5 | 1 5 2 4 Penetration Max . | . . . . Secondary Targets . | . . . . Shots Hit Robots 46 | 3 13 2 28 Core Hits 23 | 2 8 . 13 Critical Kills . | . . . . Critical Parts Destroyed . | . . . . Critical Strikes . | . . . . Melee Attacks 8 | . . 2 6 Impact . | . . . . Slashing . | . . . . Piercing . | . . . . Sneak Attacks 3 | . . 2 1 Combat Hostiles . | . . . . Follow-up Attacks . | . . . . Damage Inflicted 769 | 35 182 72 480 Guns 378 | 35 182 . 161 Cannons . | . . . . Explosions 391 | . . 72 319 Melee . | . . . . Ramming . | . . . . Kinetic 253 | 22 82 . 149 Thermal 125 | 13 100 . 12 Explosive 391 | . . 72 319 Electromagnetic . | . . . . Impact . | . . . . Slashing . | . . . . Piercing . | . . . . Highest Corruption 10 | . 3 3 10 Average Corruption 5 | . 2 3 10 Corruption Purged . | . . . . Corruption Blocked . | . . . . Effects 13 | . 6 2 5 Message Errors 4 | . 2 . 2 Matter Fused 3 | . 1 1 1 Heat Flow Errors 2 | . 2 . . Data Loss (minor) 2 | . . 1 1 Data Loss (major) 1 | . . . 1 Misfires 1 | . 1 . . Overload Shots . | . . . . Overflow Damage . | . . . . Projectiles . | . . . . Explosions . | . . . . Melee . | . . . . Knockbacks . | . . . . Impact . | . . . . Kinetic . | . . . . Secondary . | . . . . Self-Inflicted Damage 50 | . 4 44 2 Shots 3 | . 1 1 1 Rammed . | . . . . Targets Rammed . | . . . . Kicked . | . . . . Crushed . | . . . . Highest Temperature 280 | 24 280 . 9 Average Temperature 86 | 12 103 . 9 Received Heat Transfer 408 | 12 99 . 297 Siege Activations . | . . . . Robots Corrupted . | . . . . Combat Hostiles . | . . . . Parts Fried . | . . . . Impact Corruptions . | . . . . Robots Melted . | . . . . Combat Hostiles . | . . . . Parts Melted . | . . . . Heat Transferred 370 | 37 296 . 37 Parts Sabotaged . | . . . . Parts Stolen . | . . . . Parts Stripped . | . . . . Power Chain Reactions . | . . . . Missiles Intercepted . | . . . . Alert | -11 -10 -10 -9 ------- Run | Scr Mat Min Mat Peak Influence 393 | 20 139 90 393 Initial 54 | . . 54 35 Average 53 | 4 61 69 288 Maximum Alert Level 1 | . . . 1 Low Security (%) 89 | 100 100 100 19 Level 1 10 | . . . 80 Level 2 . | . . . . Level 3 . | . . . . Level 4 . | . . . . Level 5 . | . . . . High Security . | . . . . Max Security . | . . . . Squads Dispatched . | . . . . Investigation . | . . . . Extermination . | . . . . Reinforcement . | . . . . Assault . | . . . . Garrison . | . . . . Intercept . | . . . . Searches Triggered . | . . . . Construction Impeded . | . . . . Haulers Reinforced . | . . . . Active Scanning Responses . | . . . . Cargo Convoy Interrupts . | . . . . Stealth | -11 -10 -10 -9 --------- Run | Scr Mat Min Mat Distress Signals 1 | . . . 1 Communications Jammed . | . . . . Distress Signals . | . . . . Times Spotted 17 | 1 4 . 12 Peak Tracking Total 6 | 1 2 . 6 Tactical Retreats 1 | . . . 1 Traps | -11 -10 -10 -9 ------- Run | Scr Mat Min Mat Traps Triggered 2 | . 2 . . Indirectly . | . . . . Trap Hack Attempts 1 | . 1 . . Triggered . | . . . . Disarmed . | . . . . Reprogrammed . | . . . . Reused . | . . . . Traps Extracted . | . . . . Installed . | . . . . Triggered . | . . . . Machines | -11 -10 -10 -9 ---------- Run | Scr Mat Min Mat Machines Disabled 3 | . 3 . . Max in Single Turn 3 | . 3 . . Machines Sabotaged . | . . . . Garrisons Compromised . | . . . . Overloaded Fab Kills . | . . . . Hacking | -11 -10 -10 -9 --------- Run | Scr Mat Min Mat Machines Accessed 2 | . 2 . . Terminals 2 | . 2 . . Fabricators . | . . . . Repair Stations . | . . . . Recycling Units . | . . . . Scanalyzers . | . . . . Garrison Access . | . . . . Total Hacks 6 | . 6 . . Successful 5 | . 5 . . Failed 1 | . 1 . . Catastrophic . | . . . . Database Lockouts . | . . . . Manual . | . . . . Terminals 6 | . 6 . . Fabricators . | . . . . Repair Stations . | . . . . Recycling Units . | . . . . Scanalyzers . | . . . . Garrison Access . | . . . . Terminal Hacks 5 | . 5 . . Record 5 | . 5 . . Fabricator Hacks . | . . . . Repair Station Hacks . | . . . . Recycling Unit Hacks . | . . . . Scanalyzer . | . . . . Garrison Access Hacks . | . . . . Unauthorized Hacks . | . . . . Terminals . | . . . . Fabricators . | . . . . Repair Stations . | . . . . Recycling Units . | . . . . Scanalyzers . | . . . . Garrison Access . | . . . . Data Cores Recovered . | . . . . Used . | . . . . Hacking Detections 2 | . 2 . . Full Trace Events 2 | . 2 . . Feedback Events . | . . . . Feedback Blocked . | . . . . Robot Schematics Acquired . | . . . . Robots Built . | . . . . Authchips . | . . . . Time . | . . . . Total Robot Build Rating . | . . . . Part Schematics Acquired . | . . . . Parts Built . | . . . . Authchips . | . . . . Time . | . . . . Total Part Build Rating . | . . . . Parts Repaired . | . . . . Time . | . . . . Parts Recycled . | . . . . Recycled Matter . | . . . . Retrieved Matter . | . . . . Retrieved Components . | . . . . Parts Scanalyzed . | . . . . Part Schematics Acquired . | . . . . Parts Damaged . | . . . . Bothacking | -11 -10 -10 -9 ------------ Run | Scr Mat Min Mat Used RIF Installer . | . . . . Robots Hacked 4 | . . 2 2 Non-combat 2 | . . 2 . Combat 2 | . . . 2 Robot Hacks Applied 4 | . . 2 2 parse_system 3 | . . 1 2 no_distress 1 | . . 1 . Relay Couplers Released . | . . . . Fabnet Peak Effective % . | . . . . Robots Rewired . | . . . . Allies Hacked . | . . . . Hacks Repelled . | . . . . Allies | -11 -10 -10 -9 -------- Run | Scr Mat Min Mat Total Allies . | . . . . Largest Group . | . . . . Highest-Rated Group . | . . . . Highest-Rated Ally . | . . . . Total Orders . | . . . . Ally Attacks . | . . . . Total Damage . | . . . . Kills . | . . . . Allies Corrupted . | . . . . Allies Melted . | . . . . Intel | -11 -10 -10 -9 ------- Run | Scr Mat Min Mat Robot Analysis Total . | . . . . Derelict Logs Recovered 2 | . . 2 . Drone Launches . | . . . . Drone Recoveries . | . . . . Exploration | -11 -10 -10 -9 ------------- Run | Scr Mat Min Mat Turns Passed 2249 | 1499 305 149 296 Spaces Moved 964 | 465 210 121 168 Core 18 | 18 . . . Treads . | . . . . Legs 946 | 447 210 121 168 Wheels . | . . . . Hover . | . . . . Flight . | . . . . Fastest Speed 50 | 50 120 120 120 Average Speed 118 | 117 120 120 120 Slowest Speed 190 | 120 120 120 190 Overloaded Moves . | . . . . Propulsion Burnouts . | . . . . Robots Hopped . | . . . . Cave-ins Triggered 1 | . . . 1 Exploration Rate (%) 26 | 27 27 36 17 Regions Visited 3 Branch Regions 1 Pre-discovered Areas 1 | . . 1 . Known Exits Taken . | . . . . Unknown Exits Taken 3 | 1 1 1 . Scrap Searched . | . . . . Spaces Dug . | . . . . Terrain Destroyed 91 | . 14 12 65 Melee . | . . . . Projectile . | . . . . AOE 91 | . 14 12 65 Terrain Rammed . | . . . . Walls Destroyed . | . . . . Machines Disabled . | . . . . Actions | -11 -10 -10 -9 --------- Run | Scr Mat Min Mat Total 2005 | 1414 239 123 229 Wait 937 | 934 . . 3 Move 961 | 464 209 120 168 Hop . | . . . . Pick Up 20 | 7 8 . 5 Fast Attach . | . . . . Attach 19 | 6 3 . 10 Detach 2 | . 1 . 1 Swap 5 | 1 4 . . Drop 4 | . 1 . 3 Fire 48 | 2 12 1 33 Melee 8 | . . 2 6 Ram . | . . . . Kick . | . . . . Crush . | . . . . Escape Stasis . | . . . . Rewire . | . . . . Trap 1 | . 1 . . Miscellaneous . | . . . . Route ------- -11/Scrapyard -10/Materials -10/Mines -9/Materials (discovered 1 exit: [*Min]) History --------- Turn | Location | Event 2 | -11/Scrapyard | Met Revision 17 72 | -11/Scrapyard | Discovered new exit (range 8) 1500 | -11/Scrapyard | Entered Materials 1501 | -10/Materials | Build established: Mutant 1754 | -10/Materials | Discovered new exit (range 8) 1805 | -10/Materials | Entered Mines 1926 | -10/Mines | Learned Materials trap positions 1941 | -10/Mines | Learned location of Recycling (-8) 1941 | -10/Mines | Discovered new exit (range 12) 1954 | -10/Mines | Entered Materials 1954 | -9/Materials | Evolved 2 slots: Power x1, Utility x1 1955 | -9/Materials | Loaded intel: 19 trap records 2030 | -9/Materials | Discovered new exit (range 16) 2071 | -9/Materials | Crushed by falling debris 2071 | -9/Materials | System corruption reached 10% 2102 | -9/Materials | Lost 3 parts (1p1u1w) 2222 | -9/Materials | Core integrity fell below 50% 2230 | -9/Materials | Core integrity fell below 20% 2250 | -9/Materials | Destroyed by L-31 Rogue with Katana Last Messages --------------- G-34 Mercenary destroyed. K-01 Serf collects debris. Lgt. Ion Engine destroyed. U-05 Engineer lays Concrete. U-05 Engineer builds a Door. U-05 Engineer builds a Wall. Imp. Heat Sink destroyed. Jacked L-31 Rogue... >>parse_system Reading system data... Datajack destroyed. Assault Rifle destroyed. U-05 Engineer lays Concrete. K-01 Serf collects debris. U-05 Engineer lays Concrete. Carbon-fiber Leg destroyed. U-05 Engineer lays Concrete. System corrupted: Matter fused (-6). K-01 Serf collects debris. Carbon-fiber Leg destroyed. Map ----- +----------------------------------------------------+ | ??????????????????????????????????????????????? | | ??????????????????????????????????????????????? | | ??????????????????????????????????????????????? | | ??????????????????????????????????????????????? | | ??????????????????????????????????????????????? | | ??????????????????????????????????????????????? | | ??????????????????????????????????????????????? | | ??????????????????????????????????????????????? | | ??????????????????????????????????????????????? | | ??????????????????????????????????????????????? | | ??????????????????????????????????????????????? | | ??????????????????????????????????????????????? | | ??????????????????????????????????????????????? | | ??????????????????????????????????????????????? | | ??????????????????????????????????????????????? | | ???????????????????????????????????? ????????? | | ???????????????????????????????????? ????????? | | ???????????????????????????????????# ????##??? | | ??????????????????????????????????# ??? ? | | ??????????????????????????????????# | | ??????????????????????????????????# """ | | ??????????????????????????????????# "R" | | ??????????????????????????????????# " " ? | | ????????????????????########??????# | | ????????????????????# #??????# ? | | ????????????????????# @ #??????# " "?? | | ????????????????????# l #??????# """""" | | ????????????????????# #??????# """ " | | ????????????????????# g #??????# | | ???????????????????## g #??????# | | ??????????##############g########## | | ??????????# #####?? | | ??????????# # ???? | | ??????????# [ = # ""??? | | ??????????# # #### [% # """?? | | ??????????# # = #### ############# """"" | | ??????????# #!! =! #??# ## #??# """"" | | ??????????# #!!==!!#??# ## =[ #### """"" | | ??????????############??# ## = ## # | | ??????????????????????### ## # = = | | ??????????????????????### ## # ## #? | | ??????????????????????## #####/####### [#? | | ??????????????????????## < #? | | ??????????????????????## ##### #? | | ??????????????????????# # # # ##? | | ??????????????????????## ###+##### ## ### | | ???????????????????????# # ## | | ??????????????????????# # ##+##+ | | ??????????????????????# """ # ! # ? | | ??????????????????????# """"" # # """ | +----------------------------------------------------+ Best States ------------- Heat Dissipation 42 Energy Generation 19 Energy Capacity 310 Matter Stores 300 Matter Capacity 300 Sight Range 16 Terrain Scan Density 10 ECM Strength 1 Evasion (%) 55 Recoil Reduction 4 Trap Extractor Capacity 4 Item Schematics ----------------- None Robot Schematics ------------------ None Fabricated ------------ Nothing Alien Tech Used ----------------- None Achievements -------------- Maybe Next Time I'll Detach My Launcher System Compromised Unlikely Earthworm Challenges ------------ None Game ------ Seed NeutrinoSniperCore Manual? 0 Play Time 00:24:02 Cumulative 1.9 hours Start 2022.07.24 @ 15:04:46 End 2022.07.24 @ 15:40:05 Sessions 1 Manual Loads 0 Difficulty Rogue Special Mode None Game No. 2 Rogue 2 Adventurer 0 Explorer 0 Win Type - Total 0 Types 0/0/0/0/0/0/0/0/0 Lore% 1 Gallery% 4 Achievement% 5 Wizard Run 0 Options --------- ASCII 0 Keyboard 0 Movement Mouse Keybinds 0 Fullscreen 1 Font 18/Smallcaps Map View 76x50 Tactical HUD 0 Map Filters NONE Filters NONE Steam 1 RUN: db174b7d-c41d-4338-960a-7e69fa8c1e18